fUST/lending_fUST_20251012
["ID","MTS","AMOUNT","RATE_DAILY","PERIOD"]
[390978244,1760258024850,150.0,0.0002115,2]
[390978247,1760258099871,150.0,0.0001932,2]
[390978248,1760258100301,150.0,0.00021076,2]
[390978252,1760258170723,150.0,0.00019322,2]
[390978253,1760258171230,150.0,0.00021078,2]
[390978254,1760258213392,161.87373342,0.000217,2]
[390978255,1760258242715,150.0,0.00019126,2]
[390978256,1760258243182,150.0,0.00020865,2]
[390978257,1760258279164,197.36,0.00015225,2]
[390978264,1760258319041,150.0,0.00019119,2]
[390978265,1760258319444,150.0,0.00020857,2]
[390978270,1760258387782,150.0,0.0001891,2]
[390978271,1760258388196,150.0,0.00020629,2]
[390978275,1760258455741,150.0,0.00018916,2]
[390978276,1760258456227,150.0,0.00020635,2]
[390978279,1760258521527,150.0,0.00018915,2]
[390978280,1760258521968,150.0,0.00020635,2]
[390978296,1760258710774,517.010386,0.00013699,2]
[390978297,1760258710965,517.010386,0.00020187,2]
[390978302,1760258749191,-168.80997795,0.00022594,2]
[390978303,1760258749213,-500.0,0.0002271,2]
[390978304,1760258749234,-160.0,0.00023091,2]
[390978305,1760258749254,-27.95435858,0.00023091,2]
[390978313,1760258849083,-433.06526912,0.00023091,2]
[390978314,1760258849104,-194.13147464,0.00023194,2]
[390978315,1760258849124,-219.45297133,0.00023794,2]
[390978316,1760258849144,-304.97,0.00023932,3]
[390978317,1760258849164,-152.49,0.00023932,3]
[390978318,1760258849183,-457.48,0.00023932,3]
[390978319,1760258849203,-343.87,0.00023932,10]
[390978320,1760258849222,-300.0,0.00023938,2]
[390978321,1760258849241,-1200.0,0.00023939,2]
[390978322,1760258849260,-1200.0,0.00023939,2]
[390978323,1760258849279,-500.0,0.0002394,2]
[390978324,1760258849296,-502.24974131,0.0002394,2]
[390978325,1760258849315,-300.0,0.0002394,2]
[390978326,1760258849333,-500.0,0.0002394,2]
[390978327,1760258849352,-500.0,0.0002394,2]
[390978328,1760258849370,-348.6,0.0002394,2]
[390978329,1760258849389,-500.0,0.0002394,2]
[390978330,1760258849407,-500.0,0.0002394,2]
[390978331,1760258849426,-502.67314138,0.0002394,2]
[390978332,1760258849445,-500.0,0.0002394,2]
[390978333,1760258849463,-500.0,0.0002394,2]
[390978334,1760258849482,-500.0,0.0002394,2]
[390978335,1760258849500,-500.0,0.0002394,2]
[390978336,1760258849526,-500.0,0.0002394,2]
[390978337,1760258849555,-500.0,0.0002394,2]
[390978338,1760258849573,-500.0,0.0002394,2]
[390978339,1760258849592,-500.0,0.0002394,2]
[390978340,1760258849610,-500.0,0.0002394,2]
[390978341,1760258849629,-500.0,0.0002394,2]
[390978342,1760258849649,-500.0,0.0002394,2]
[390978343,1760258849668,-500.0,0.0002394,2]
[390978344,1760258849687,-500.0,0.0002394,2]
[390978345,1760258849705,-500.0,0.0002394,2]
[390978346,1760258849723,-500.0,0.0002394,2]
[390978347,1760258849742,-375.94,0.0002394,2]
[390978348,1760258849761,-500.0,0.0002394,2]
[390978349,1760258849781,-500.0,0.0002394,2]
[390978350,1760258849801,-500.0,0.0002394,2]
[390978351,1760258849821,-599.86,0.0002394,2]
[390978352,1760258849841,-500.0,0.0002394,2]
[390978353,1760258849861,-500.0,0.0002394,2]
[390978354,1760258849880,-401.44330821,0.0002394,2]
[390978355,1760258849900,-500.0,0.0002394,2]
[390978356,1760258849919,-500.0,0.0002394,2]
[390978357,1760258849938,-500.0,0.00023941,2]
[390978358,1760258849958,-500.0,0.00023941,2]
[390978359,1760258849978,-500.0,0.00023941,2]
[390978360,1760258849997,-500.0,0.00023941,2]
[390978361,1760258850015,-213.49048399,0.00023941,2]
[390978362,1760258850034,-500.0,0.00023941,2]
[390978363,1760258850053,-500.0,0.00023941,2]
[390978364,1760258850072,-618.51,0.00023941,2]
[390978365,1760258850090,-500.0,0.00023941,2]
[390978366,1760258850109,-500.0,0.00023941,2]
[390978367,1760258850128,-177.79,0.00023941,2]
[390978368,1760258850148,-500.0,0.00023941,2]
[390978369,1760258850167,-500.0,0.00023941,2]
[390978370,1760258850187,-500.0,0.00023941,2]
[390978371,1760258850208,-500.7,0.00023941,2]
[390978372,1760258850232,-500.0,0.00023941,2]
[390978373,1760258850257,-500.0,0.00023941,2]
[390978374,1760258850277,-501.00340677,0.00023941,2]
[390978375,1760258850297,-500.0,0.00023941,2]
[390978376,1760258850316,-500.0,0.00023941,2]
[390978377,1760258850336,-636.43,0.00023941,2]
[390978378,1760258850356,-500.0,0.00023941,2]
[390978379,1760258850376,-502.07683611,0.00023941,2]
[390978380,1760258850396,-500.0,0.00023941,2]
[390978381,1760258850415,-500.0,0.00023941,2]
[390978382,1760258850435,-500.0,0.00023941,2]
[390978383,1760258850458,-500.0,0.00023941,2]
[390978384,1760258850478,-500.0,0.00023941,2]
[390978385,1760258850497,-279.77,0.00023941,2]
[390978386,1760258850518,-503.63316883,0.00023941,2]
[390978387,1760258850543,-500.0,0.00023941,2]
[390978388,1760258850565,-500.0,0.00023941,2]
[390978389,1760258850586,-501.09754199,0.00023941,2]
[390978390,1760258850608,-500.0,0.00023941,2]
[390978391,1760258850628,-500.0,0.00023941,2]
[390978392,1760258850649,-500.0,0.00023941,2]
[390978393,1760258850671,-300.0,0.00023941,2]
[390978394,1760258850690,-7250.63245873,0.00023942,2]
[390978405,1760259032343,-500.0,0.0002271,2]
[390978406,1760259032352,-300.0,0.000239,2]
[390978407,1760259032362,-300.0,0.000239,2]
[390978408,1760259032372,-207.93167528,0.00023928,2]
[390978409,1760259032383,-48.36172267,0.00023928,2]
[390978410,1760259032392,-1200.0,0.00023931,2]
[390978411,1760259032402,-238.24,0.00023932,3]
[390978412,1760259032412,-714.72,0.00023932,3]
[390978413,1760259032422,-816.84,0.00023932,3]
[390978414,1760259032431,-684.87,0.00023932,10]
[390978415,1760259032441,-300.0,0.00023938,2]
[390978416,1760259032461,-497.9209189,0.00023939,2]
[390978417,1760259032471,-500.20965639,0.00023939,2]
[390978418,1760259032480,-500.24573843,0.00023939,2]
[390978419,1760259032490,-500.0,0.0002394,2]
[390978420,1760259032500,-500.0,0.0002394,2]
[390978421,1760259032510,-529.78508243,0.0002394,2]
[390978422,1760259032521,-500.0,0.0002394,2]
[390978423,1760259032531,-230.12,0.0002394,2]
[390978424,1760259032541,-500.0,0.0002394,2]
[390978425,1760259032551,-500.0,0.0002394,2]
[390978426,1760259032561,-500.0,0.0002394,2]
[390978427,1760259032573,-584.95,0.0002394,2]
[390978428,1760259032591,-500.0,0.0002394,2]
[390978429,1760259032601,-500.0,0.0002394,2]
[390978430,1760259032611,-500.0,0.0002394,2]
[390978431,1760259032620,-501.34124379,0.0002394,2]
[390978432,1760259032632,-500.0,0.0002394,2]
[390978433,1760259032641,-393.43,0.0002394,2]
[390978434,1760259032651,-500.0,0.0002394,2]
[390978435,1760259032661,-565.95,0.0002394,2]
[390978436,1760259032672,-500.0,0.0002394,2]
[390978437,1760259032682,-500.0,0.0002394,2]
[390978438,1760259032691,-500.0,0.0002394,2]
[390978439,1760259032700,-500.0,0.0002394,2]
[390978440,1760259032710,-500.0,0.0002394,2]
[390978441,1760259032720,-500.0,0.0002394,2]
[390978442,1760259032729,-500.0,0.0002394,2]
[390978443,1760259032739,-500.0,0.0002394,2]
[390978444,1760259032748,-500.0,0.0002394,2]
[390978445,1760259032757,-500.0,0.0002394,2]
[390978446,1760259032767,-489.84391691,0.0002394,2]
[390978447,1760259032776,-500.0,0.0002394,2]
[390978448,1760259032786,-500.0,0.00023941,2]
[390978449,1760259032795,-500.0,0.00023941,2]
[390978450,1760259032805,-300.0,0.00023941,2]
[390978451,1760259032815,-500.0,0.00023941,2]
[390978452,1760259032824,-255.59590223,0.00023941,2]
[390978453,1760259032834,-500.0,0.00023941,2]
[390978454,1760259032843,-501.58376597,0.00023941,2]
[390978455,1760259032852,-500.0,0.00023941,2]
[390978456,1760259032862,-365.83,0.00023941,2]
[390978457,1760259032872,-500.0,0.00023941,2]
[390978458,1760259032881,-500.0,0.00023941,2]
[390978459,1760259032891,-506.03,0.00023941,2]
[390978460,1760259032900,-500.0,0.00023941,2]
[390978461,1760259032910,-23448.75927544,0.00023942,2]
[390978567,1760259038440,-475.48792972,0.00023932,10]
[390978569,1760259038452,-95.24207028,0.00023932,10]
[390978571,1760259038461,-500.0,0.0002394,2]
[390978573,1760259038471,-500.0,0.0002394,2]
[390978575,1760259038480,-1227.67,0.0002394,2]
[390978577,1760259038489,-500.0,0.00023941,2]
[390978579,1760259038499,-485.10795416,0.00023941,2]
[390978581,1760259038508,-500.0,0.00023941,2]
[390978583,1760259038517,-469.99833617,0.00023941,2]
[390978585,1760259038527,-1227.67,0.00023941,2]
[390978587,1760259038536,-1227.67,0.00023941,2]
[390978589,1760259038546,-1227.67,0.00023941,2]
[390978591,1760259038555,-1227.67,0.00023941,2]
[390978593,1760259038564,-1227.67,0.00023941,2]
[390978595,1760259038575,-212983.63163941,0.00023942,2]
[390978597,1760259038589,-3348.0,0.00023942,2]
[390978613,1760259040587,-1227.67,0.00023941,2]
[390978614,1760259040600,-1227.67,0.00023941,2]
[390978615,1760259040612,-1227.67,0.00023941,2]
[390978616,1760259040624,-1227.67,0.00023941,2]
[390978617,1760259040635,-1227.67,0.00023941,2]
[390978618,1760259040646,-1227.67,0.00023941,2]
[390978619,1760259040657,-1227.67,0.00023941,2]
[390978620,1760259040669,-49751.9746571,0.00023942,2]
[390978639,1760259046304,-500.0,0.0002394,2]
[390978640,1760259046316,-1227.67,0.00023941,2]
[390978641,1760259046328,-503.93,0.00023941,2]
[390978788,1760259683761,1173.67422228,0.00021788,2]
[390979043,1760259728558,-201136.1249436,0.00030229,60]
[390979044,1760259728584,-15131.04591422,0.00030229,120]
[390979045,1760259728609,-2191.40195295,0.00030229,120]
[390979046,1760259728637,-190569.07,0.00030229,120]
[390979047,1760259728664,-500.0,0.00030229,60]
[390979048,1760259728692,-500.0,0.00030229,60]
[390979049,1760259728719,-500.0,0.00030229,60]
[390979050,1760259728747,-500.0,0.00030229,60]
[390979051,1760259728775,-500.0,0.00030229,60]
[390979052,1760259728805,-500.0,0.00030229,60]
[390979053,1760259728836,-500.0,0.00030229,60]
[390979054,1760259728865,-500.0,0.00030229,60]
[390979055,1760259728897,-618.00905853,0.00030229,60]
[390979621,1760259855991,157.0,0.00024,120]
[390980152,1760259913792,500.0,0.00030229,60]
[390980153,1760259914067,500.0,0.00030229,60]
[390980154,1760259914308,500.0,0.00030229,60]
[390980155,1760259914580,500.0,0.00030229,60]
[390980156,1760259914793,500.0,0.00030229,60]
[390980157,1760259915680,500.0,0.00030229,60]
[390980158,1760259915939,500.0,0.00030229,60]
[390980159,1760259916000,501.81788,0.00027397,120]
[390980160,1760259916209,500.0,0.00030229,60]
[390980161,1760259916458,500.0,0.00030229,60]
[390980162,1760259916745,500.0,0.00030229,60]
[390980163,1760259916986,500.0,0.00030229,60]
[390980164,1760259917243,500.0,0.00030229,60]
[390980165,1760259917491,500.0,0.00030229,60]
[390980166,1760259917757,268.56289896,0.00030229,60]
[390980167,1760260021498,475.88785493,0.00030229,120]
[390980168,1760260044124,-211.24982631,0.000222,4]
[390980169,1760260044145,-212.64505071,0.00022256,2]
[390980170,1760260044166,-398.15596219,0.000223,2]
[390980171,1760260052386,500.0,0.00030229,60]
[390980172,1760260052619,500.0,0.00030229,60]
[390980173,1760260052855,500.0,0.00030229,60]
[390980174,1760260053094,500.0,0.00030229,60]
[390980175,1760260053390,500.0,0.00030229,60]
[390980176,1760260053586,500.0,0.00030229,60]
[390980177,1760260053818,500.0,0.00030229,60]
[390980178,1760260054090,500.0,0.00030229,60]
[390980179,1760260054327,500.0,0.00030229,60]
[390980180,1760260054556,500.0,0.00030229,60]
[390980181,1760260054781,500.0,0.00030229,60]
[390980182,1760260055022,500.0,0.00030229,60]
[390980183,1760260055256,500.0,0.00030229,60]
[390980184,1760260055524,500.0,0.00030229,60]
[390980185,1760260055795,500.0,0.00030229,60]
[390980186,1760260056295,500.0,0.00030229,60]
[390980187,1760260056564,500.0,0.00030229,60]
[390980188,1760260056832,500.0,0.00030229,60]
[390980189,1760260057122,500.0,0.00030229,60]
[390980190,1760260057375,443.64149023,0.00030229,60]
[390980193,1760260174097,-103.50575654,0.000223,2]
[390980241,1760260232520,-215.05717424,0.00022356,7]
[390980242,1760260232529,-500.0,0.00022436,2]
[390980245,1760260232538,-293.71937475,0.00022595,2]
[390980366,1760260234906,292.09188,0.00027,120]
[390980382,1760260238510,-706.28062525,0.00022595,2]
[390980383,1760260238520,-222.70282846,0.00022856,2]
[390980384,1760260238532,-21.83897985,0.00022856,2]
[390980385,1760260238542,-664.0,0.00022988,2]
[390980386,1760260238551,-1017.61188008,0.00022989,2]
[390980458,1760260243423,-182.38811992,0.00022989,2]
[390980459,1760260243433,-300.0,0.00022989,2]
[390980460,1760260243442,-9376.75105244,0.0002299,2]
[390980461,1760260243583,-2725.8705826,0.0002299,2]
[390980462,1760260243592,-588.537303,0.00023,2]
[390980463,1760260243601,-391.9198272,0.00023041,2]
[390980464,1760260243610,-189.7609727,0.000231,2]
[390980465,1760260243620,-588.537303,0.000231,2]
[390980466,1760260243629,-1377.2791542,0.00023155,2]
[390980467,1760260243638,-325.6764454,0.00023178,2]
[390980468,1760260243647,-588.537303,0.00023178,2]
[390980469,1760260243656,-193.0143652,0.00023178,2]
[390980470,1760260243665,-189.7609727,0.00023178,2]
[390980471,1760260243674,-153.0,0.00023178,2]
[390980472,1760260243683,-153.0,0.00023178,2]
[390980473,1760260243692,-1377.2791542,0.0002341,2]
[390980474,1760260243701,-500.0,0.00023414,2]
[390980475,1760260243710,-500.0,0.00023414,2]
[390980476,1760260243719,-500.0,0.00023414,2]
[390980477,1760260243727,-500.0,0.00023414,2]
[390980478,1760260243737,-500.0,0.00023414,2]
[390980479,1760260243746,-500.0,0.00023455,2]
[390980480,1760260243756,-276.43856592,0.00023456,2]
[390980481,1760260243765,-482.27098122,0.00023466,2]
[390980482,1760260243774,-500.0,0.00023466,2]
[390980483,1760260243784,-500.0,0.00023466,2]
[390980484,1760260243793,-500.0,0.00023466,2]
[390980485,1760260243803,-501.39167991,0.00023466,2]
[390980486,1760260243822,-500.0,0.00023466,2]
[390980487,1760260243832,-228.31932274,0.00023466,2]
[390980488,1760260243842,-500.0,0.00023466,2]
[390980489,1760260243851,-500.0,0.00023467,2]
[390980490,1760260243861,-628.20353952,0.00023467,2]
[390980491,1760260243871,-500.0,0.00023467,2]
[390980492,1760260243881,-262.5545764,0.00023467,2]
[390980493,1760260243890,-500.0,0.00023467,2]
[390980494,1760260243900,-500.0,0.00023468,2]
[390980495,1760260243909,-505.14886751,0.00023468,2]
[390980496,1760260243919,-157.757348,0.00023468,2]
[390980497,1760260243929,-500.0,0.00023468,2]
[390980498,1760260243938,-500.0,0.00023468,2]
[390980499,1760260243948,-500.0,0.00023468,2]
[390980500,1760260243957,-500.0,0.00023468,2]
[390980501,1760260243966,-500.0,0.00023468,2]
[390980502,1760260243975,-500.0,0.00023468,2]
[390980503,1760260243984,-500.0,0.00023468,2]
[390980504,1760260243993,-500.0,0.00023468,2]
[390980505,1760260244003,-500.0,0.00023468,2]
[390980506,1760260244012,-500.0,0.00023468,2]
[390980507,1760260244022,-500.0,0.00023468,2]
[390980508,1760260244031,-500.0,0.00023468,2]
[390980509,1760260244041,-500.52230088,0.00023468,2]
[390980510,1760260244051,-504.17224327,0.00023468,2]
[390980511,1760260244060,-500.99175476,0.00023468,2]
[390980512,1760260244070,-500.0,0.00023468,2]
[390980513,1760260244080,-500.76029854,0.00023468,2]
[390980514,1760260244090,-500.0,0.00023468,2]
[390980515,1760260244099,-500.0,0.00023468,2]
[390980516,1760260244112,-500.90624379,0.00023468,2]
[390980517,1760260244128,-500.0,0.00023468,2]
[390980518,1760260244138,-500.80769288,0.00023468,2]
[390980519,1760260244148,-500.0,0.00023468,2]
[390980520,1760260244159,-500.0,0.00023468,2]
[390980521,1760260244169,-500.0,0.00023468,2]
[390980522,1760260244178,-500.0,0.00023468,2]
[390980523,1760260244188,-500.0,0.00023468,2]
[390980524,1760260244198,-500.0,0.00023468,2]
[390980525,1760260244208,-500.0,0.00023468,2]
[390980526,1760260244219,-500.0,0.00023468,2]
[390980527,1760260244229,-500.0,0.00023468,2]
[390980528,1760260244241,-500.0,0.00023468,2]
[390980529,1760260244251,-500.0,0.00023468,2]
[390980530,1760260244261,-421.83406148,0.00023468,2]
[390980531,1760260244271,-500.0,0.00023468,2]
[390980532,1760260244281,-500.0,0.00023468,2]
[390980533,1760260244290,-500.0,0.00023468,2]
[390980534,1760260244300,-500.0,0.00023468,2]
[390980535,1760260244309,-500.0,0.00023468,2]
[390980536,1760260244319,-500.0,0.00023468,2]
[390980537,1760260244329,-500.0,0.00023468,2]
[390980538,1760260244339,-500.0,0.00023468,2]
[390980539,1760260244348,-500.0,0.00023468,2]
[390980540,1760260244358,-500.0,0.00023468,2]
[390980541,1760260244367,-500.0,0.00023468,2]
[390980542,1760260244377,-501.72722017,0.00023468,2]
[390980543,1760260244386,-500.0,0.00023468,2]
[390980544,1760260244395,-500.0,0.00023468,2]
[390980545,1760260244405,-500.0,0.00023468,2]
[390980546,1760260244414,-503.84759013,0.00023468,2]
[390980547,1760260244424,-239.51991381,0.00023468,2]
[390980548,1760260244433,-500.0,0.00023468,2]
[390980549,1760260244442,-500.0,0.00023468,2]
[390980550,1760260244451,-500.0,0.00023468,2]
[390980551,1760260244461,-500.0,0.00023468,2]
[390980552,1760260244470,-500.0,0.00023468,2]
[390980553,1760260244479,-165.37726375,0.00023468,2]
[390980554,1760260244489,-520.0,0.00023468,3]
[390980555,1760260244499,-529.43521857,0.00023468,3]
[390980556,1760260244508,-3613.0,0.00023469,2]
[390980557,1760260244518,-1472.9919766,0.000235,2]
[390980558,1760260244527,-500.0,0.00023532,2]
[390980559,1760260244536,-189.6844223,0.00023671,2]
[390980560,1760260244545,-153.0,0.00023671,2]
[390980561,1760260244555,-588.537303,0.00023671,2]
[390980562,1760260244564,-307.9340188,0.00023671,2]
[390980563,1760260244573,-588.537303,0.00023671,2]
[390980564,1760260244583,-588.537303,0.00023671,2]
[390980565,1760260244592,-588.537303,0.00023671,2]
[390980566,1760260244601,-601.2973814,0.00023678,2]
[390980567,1760260244610,-153.0,0.00023678,2]
[390980568,1760260244619,-460.52,0.00023732,3]
[390980569,1760260244629,-1377.2791542,0.00023767,2]
[390980570,1760260244638,-218.46037365,0.00023773,2]
[390980571,1760260244647,-2117.37947689,0.00023773,2]
[390980572,1760260244656,-339.0,0.00023779,2]
[390980573,1760260244666,-153.0,0.00023781,2]
[390980574,1760260244675,-475.6,0.00023832,10]
[390980575,1760260244684,-396.34,0.00023832,10]
[390980576,1760260244694,-330.28,0.00023832,10]
[390980577,1760260244702,-787.29,0.00023832,3]
[390980578,1760260244711,-503.05416711,0.0002384,2]
[390980579,1760260244720,-167.89069863,0.00023841,2]
[390980580,1760260244729,-279.87169107,0.00023841,2]
[390980581,1760260244740,-500.0,0.00023841,2]
[390980582,1760260244749,-500.0,0.00023841,2]
[390980583,1760260244758,-500.0,0.00023841,2]
[390980584,1760260244767,-500.0,0.00023841,2]
[390980585,1760260244776,-500.0,0.00023841,2]
[390980586,1760260244786,-500.0,0.00023841,2]
[390980587,1760260244795,-500.0,0.00023841,2]
[390980588,1760260244805,-636.4719286,0.00023841,2]
[390980589,1760260244814,-500.0,0.00023841,2]
[390980590,1760260244823,-500.0,0.00023841,2]
[390980591,1760260244832,-502.45846065,0.00023841,2]
[390980592,1760260244841,-1000.0,0.00023841,2]
[390980593,1760260244851,-99183.82940626,0.00023842,2]
[390980596,1760260248497,-275.23,0.00023832,10]
[390980597,1760260248509,-837.57,0.00023842,2]
[390980600,1760260256573,150.0,0.00018876,2]
[390980601,1760260256988,150.0,0.00020592,2]
[390980602,1760260257490,150.0,0.00022309,2]
[390980603,1760260324861,150.0,0.00018917,2]
[390980604,1760260325299,150.0,0.00020637,2]
[390980605,1760260390527,150.0,0.00018899,2]
[390980608,1760260649064,5000.0,0.00021788,2]
[390980611,1760260922261,2800.0,0.00030243,60]
[390980615,1760261162803,1125.5631829,0.00021304,2]
[390980616,1760261165433,767.89358983,0.00021118,2]
[390980617,1760261167809,1365.14415971,0.00021118,2]
[390980621,1760261170202,417.73484528,0.00021118,2]
[390980622,1760261170224,1713.16986651,0.00021118,2]
[390980624,1760261253160,-186.0201724,0.00022027,2]
[390980625,1760261253182,-28.02973063,0.00022027,2]
[390980631,1760261289375,150.0,0.00018895,2]
[390980634,1760261314086,241.31118424,0.00030243,120]
[390980635,1760261317653,263.01826048,0.00030243,60]
[390980636,1760261319759,3110.00005201,0.000203,2]
[390980637,1760261321588,209.61559567,0.00030243,120]
[390980679,1760261432608,-496.24129189,0.00021835,2]
[390980696,1760261432771,-169.75870811,0.00021835,2]
[390980698,1760261432781,-496.24129189,0.00021917,8]
[390980700,1760261432790,-500.0,0.00022,2]
[390980701,1760261432799,-182.70520805,0.00022027,2]
[390980703,1760261432809,-187.569114,0.00022422,2]
[390980705,1760261432819,-335.2620062,0.00022425,5]
[390980707,1760261432828,-53.66141322,0.00022436,2]
[390980708,1760261432840,-418.25773489,0.00022436,2]
[390980714,1760261438581,-28.08085189,0.00022436,2]
[390980715,1760261438592,-242.34517948,0.00022627,2]
[390980716,1760261438601,-178.88548951,0.00022725,2]
[390980717,1760261438613,-121.11451049,0.00022725,2]
[390980718,1760261438622,-500.0,0.00022726,2]
[390980719,1760261438632,-280.64559114,0.00022726,2]
[390980720,1760261438641,-838.54113235,0.00022726,2]
[390980721,1760261438689,-361.45886765,0.00022726,2]
[390980722,1760261438699,-500.0,0.00022726,2]
[390980723,1760261438709,-13157.42142008,0.00022726,2]
[390980724,1760261438719,-8010.4387741,0.00022727,2]
[390980725,1760261438728,-372.76871277,0.00022906,2]
[390980726,1760261438737,-297.8851395,0.00023114,2]
[390980727,1760261438746,-162.8757457,0.00023114,2]
[390980728,1760261438755,-273.95542028,0.00023227,2]
[390980729,1760261438764,-484.44499572,0.00023395,2]
[390980730,1760261438773,-202.08639383,0.00023395,2]
[390980731,1760261438783,-642.89,0.00023398,2]
[390980732,1760261438792,-500.0,0.00023398,2]
[390980733,1760261438801,-500.0,0.00023398,2]
[390980734,1760261438810,-504.94,0.00023398,2]
[390980735,1760261438819,-500.0,0.00023398,2]
[390980736,1760261438828,-500.0,0.00023398,2]
[390980737,1760261438838,-500.0,0.00023398,2]
[390980738,1760261438847,-500.0,0.00023398,2]
[390980739,1760261438856,-631.62,0.00023398,2]
[390980740,1760261438865,-500.0,0.00023398,2]
[390980741,1760261438874,-500.0,0.00023398,2]
[390980742,1760261438884,-483.79075119,0.00023398,2]
[390980743,1760261438894,-500.0,0.00023398,2]
[390980744,1760261438903,-500.70806477,0.00023398,2]
[390980745,1760261438912,-500.0,0.00023398,2]
[390980746,1760261438923,-500.0,0.00023398,2]
[390980747,1760261438932,-501.1684362,0.00023398,2]
[390980748,1760261438941,-500.0,0.00023398,2]
[390980749,1760261438951,-500.0,0.00023398,2]
[390980750,1760261438960,-501.49872411,0.00023398,2]
[390980751,1760261438969,-298.14,0.00023399,10]
[390980752,1760261438980,-248.45,0.00023399,10]
[390980754,1760261438989,-207.04,0.00023399,10]
[390980756,1760261438999,-539.13,0.00023404,3]
[390980757,1760261439009,-269.57,0.00023404,3]
[390980759,1760261439020,-808.73,0.00023404,3]
[390980761,1760261439029,-500.0,0.00023406,2]
[390980763,1760261439040,-500.0,0.00023406,2]
[390980765,1760261439050,-500.0,0.00023406,2]
[390980767,1760261439059,-500.0,0.00023406,2]
[390980769,1760261439070,-500.0,0.00023406,2]
[390980771,1760261439080,-500.0,0.00023406,2]
[390980774,1760261439100,-500.0,0.00023406,2]
[390980776,1760261439114,-500.0,0.00023406,2]
[390980778,1760261439126,-590.76609098,0.00023406,2]
[390980780,1760261439136,-500.0,0.00023406,2]
[390980781,1760261439146,-500.0,0.00023406,2]
[390980782,1760261439156,-318.6347799,0.00023406,2]
[390980784,1760261439167,-500.0,0.00023406,2]
[390980785,1760261439176,-500.0,0.00023406,2]
[390980786,1760261439185,-500.0,0.00023406,2]
[390980787,1760261439195,-236.45230008,0.00023406,2]
[390980788,1760261439205,-500.0,0.00023406,2]
[390980789,1760261439215,-649.17211808,0.00023406,2]
[390980790,1760261439225,-642.22,0.00023408,2]
[390980791,1760261439236,-2248.25,0.00023408,2]
[390980792,1760261439245,-500.0,0.00023408,2]
[390980793,1760261439255,-500.0,0.00023408,2]
[390980794,1760261439266,-500.0,0.00023408,2]
[390980795,1760261439276,-500.0,0.00023408,2]
[390980796,1760261439286,-500.0,0.00023408,2]
[390980797,1760261439297,-500.0,0.00023408,2]
[390980798,1760261439307,-500.0,0.00023408,2]
[390980799,1760261439317,-500.0,0.00023408,2]
[390980800,1760261439329,-500.0,0.00023408,2]
[390980801,1760261439343,-500.0,0.00023408,2]
[390980802,1760261439353,-92.55364032,0.00023408,2]
[390980803,1760261439367,-407.44635968,0.00023408,2]
[390980804,1760261439377,-500.0,0.00023408,2]
[390980805,1760261439387,-362.81880435,0.00023408,2]
[390980806,1760261439398,-181.61,0.00023408,2]
[390980807,1760261439408,-500.0,0.00023408,2]
[390980808,1760261439418,-500.0,0.00023408,2]